bitfinex/quotes_ETHUSD_20250220
["timestamp","ask_amount","ask_price","bid_price","bid_amount"]
[1740024873472,1.32280745,2751.0,2750.5,4.18561]
[1740024873673,1.32280745,2751.0,2750.5,7.82121]
[1740024873976,1.32280745,2751.0,2750.6,3.63553]
[1740024875003,1.32280745,2751.0,2750.5,4.1856]
[1740024875378,1.32280745,2751.0,2750.5,7.82121]
[1740024876178,1.32280745,2751.0,2750.5,4.1856]
[1740024876574,1.32280745,2751.0,2750.5,7.82121]
[1740024877276,1.32280745,2751.0,2750.6,3.63553]
[1740024877571,1.32280745,2751.0,2750.5,4.1856]
[1740024877874,2.12480745,2750.8,2750.4,0.7662]
[1740024878077,2.12480745,2750.8,2750.3,3.63594]
[1740024878276,2.12480745,2750.8,2750.3,0.55]
[1740024878480,5.76011745,2750.8,2750.3,0.55]
[1740024879119,2.12480745,2750.8,2750.3,0.55]
[1740024879601,2.12480745,2750.8,2750.3,5.009621]
[1740024882100,2.12480745,2750.8,2750.3,1.373661]
[1740024882268,2.12480745,2750.8,2750.5,3.63563]
[1740024882663,0.802,2750.8,2750.5,3.63563]
[1740024883366,0.796,2751.0,2750.7,3.63538]
[1740024883895,5.39,2751.1,2750.7,3.63538]
[1740024884464,5.39,2751.1,2750.7,7.27074]
[1740024884686,5.39,2751.1,2750.7,3.63536]
[1740024885098,1.32280745,2751.0,2750.6,0.55]
[1740024885392,0.7993,2750.9,2750.4,0.798]
[1740024885595,0.7993,2750.9,2750.4,4.43379]
[1740024886296,0.7993,2750.9,2750.4,0.798]
[1740024886674,0.7993,2750.9,2750.4,4.43375]
[1740024887618,0.7993,2750.9,2750.4,0.798]
[1740024887969,0.7993,2750.9,2750.4,4.43383]
[1740024890362,0.7993,2750.9,2750.3,4.18596]
[1740024890562,1.32280745,2750.8,2750.3,0.55]
[1740024890992,0.7874,2750.7,2750.3,0.55]
[1740024891668,0.7796,2750.5,2750.0,3.89623]
[1740024891873,0.7796,2750.5,2750.0,3.63623]
[1740024892080,0.7796,2750.5,2750.0,4.466098]
[1740024893774,0.7796,2750.5,2750.0,0.829868]
[1740024893976,1.32280745,2750.4,2749.9,0.55]
[1740024894171,0.7604,2750.3,2749.9,0.55]
[1740024895299,0.7604,2750.3,2750.0,3.63634]
[1740024895481,0.7604,2750.3,2750.0,3.63626]
[1740024895683,6.188,2750.7,2750.1,1.355]
[1740024895864,6.188,2750.7,2750.2,3.63602]
[1740024896068,6.188,2750.7,2750.3,3.63593]
[1740024896997,7.51080745,2750.7,2750.3,3.63593]
[1740024897569,7.51080745,2750.7,2750.2,3.63609]
[1740024897810,7.51080745,2750.7,2750.3,3.63591]
[1740024898911,7.51080745,2750.7,2750.4,3.63576]
[1740024899683,7.51080745,2750.7,2750.1,4.99115]
[1740024899885,7.51080745,2750.7,2750.3,3.63594]
[1740024900475,7.51080745,2750.7,2750.4,3.6358]
[1740024901406,6.188,2750.7,2750.4,3.6358]
[1740024901604,5.39,2750.7,2750.6,3.63557]
[1740024901809,6.1562,2751.0,2750.6,7.27105]
[1740024902213,6.1562,2751.0,2750.6,3.63548]
[1740024902414,6.1562,2751.0,2750.5,0.55]
[1740024902635,6.1562,2751.0,2750.6,3.63545]
[1740024902836,5.39,2751.0,2750.9,3.63517]
[1740024903135,0.7662,2751.4,2750.9,3.63517]
[1740024903340,0.7662,2751.4,2751.1,3.6349]
[1740024903544,0.7662,2751.4,2750.9,3.63517]
[1740024903825,0.7662,2751.4,2750.9,3.63506]
[1740024904654,0.7662,2751.4,2751.0,3.63501]
[1740024904939,0.7662,2751.4,2750.9,3.63506]
[1740024905136,0.7662,2751.4,2751.0,3.635]
[1740024905435,0.7662,2751.4,2750.9,3.63506]
[1740024906012,0.7662,2751.4,2750.9,7.27012]
[1740024906534,0.7662,2751.4,2751.0,3.63491]
[1740024906936,0.7662,2751.4,2751.1,3.63487]
[1740024908647,0.7662,2751.4,2751.0,3.63501]
[1740024909733,0.7662,2751.4,2751.1,3.63482]
[1740024909938,0.7662,2751.4,2751.0,3.63501]
[1740024911127,0.7662,2751.4,2751.0,3.63496]
[1740024911928,0.7662,2751.4,2750.8,4.40623]
[1740024911929,0.7662,2751.4,2751.1,3.63481]
[1740024913223,5.39,2751.9,2751.2,0.7586]
[1740024913438,5.39,2751.9,2751.4,3.63443]
[1740024913944,0.7782,2751.8,2751.4,3.63443]
[1740024914337,0.7782,2751.8,2751.5,3.63429]
[1740024914651,0.7782,2751.8,2751.2,4.3933]
[1740024914806,0.7782,2751.8,2751.3,3.63457]
[1740024915310,0.7782,2751.8,2751.4,3.63451]
[1740024915505,0.7782,2751.8,2751.5,3.63433]
[1740024915714,0.7782,2751.8,2751.4,3.63451]
[1740024916047,0.7782,2751.8,2751.6,3.63421]
[1740024916218,5.39,2751.9,2751.6,3.63421]
[1740024916646,6.2043,2752.0,2751.6,3.63421]
[1740024917007,6.2043,2752.0,2751.6,3.63412]
[1740024917210,6.2043,2752.0,2751.7,3.63409]
[1740024917410,5.39,2752.0,2751.8,3.63395]
[1740024917868,0.7573,2752.2,2751.8,3.63395]
[1740024918355,0.7573,2752.2,2751.7,1.501621]
[1740024918506,4.39076,2752.2,2751.7,0.726821]
[1740024918708,4.39076,2752.2,2751.6,0.55]
[1740024918923,3.63364,2752.1,2751.6,0.55]
[1740024919957,3.63419,2751.7,2751.1,1.50179]
[1740024920184,3.63424,2751.6,2751.1,1.76179]
[1740024920388,4.39139,2751.8,2751.1,1.76179]
[1740024920685,3.63413,2751.7,2751.1,1.76179]
[1740024921370,4.43535,2751.6,2751.0,5.28]
[1740024921794,3.63438,2751.5,2751.0,5.28]
[1740024921948,3.63438,2751.5,2750.8,3.89525]
[1740024922297,4.43544,2751.6,2750.9,4.402255]
[1740024923483,3.63446,2751.5,2750.9,0.767205]
[1740024924169,3.63446,2751.5,2750.9,4.402335]
[1740024926989,3.63446,2751.5,2750.9,0.767205]
[1740024927192,3.63446,2751.5,2750.8,3.8952]
[1740024927357,3.63446,2751.5,2750.9,3.63514]
[1740024927557,3.63446,2751.5,2750.8,3.8952]
[1740024927972,0.813,2751.3,2750.8,3.8952]
[1740024928372,0.813,2751.3,2750.8,3.6352]
[1740024928550,0.813,2751.3,2751.0,3.63491]
[1740024928757,0.813,2751.3,2750.9,3.6351]
[1740024928951,0.813,2751.3,2750.9,7.27019]
[1740024929179,0.813,2751.3,2750.9,3.63509]
[1740024929564,0.813,2751.3,2750.9,3.63507]
[1740024930262,6.148,2751.5,2750.9,4.439793]
[1740024930467,6.148,2751.5,2751.1,3.63487]
[1740024931191,6.148,2751.5,2751.1,3.63487]
[1740024932181,6.148,2751.5,2751.2,0.0518189]
[1740024933667,6.148,2751.5,2751.2,3.6864989]
[1740024934044,6.148,2751.5,2751.2,0.0518189]
[1740024934243,6.148,2751.5,2751.2,3.6865489]
[1740024934468,6.148,2751.5,2751.2,0.0518189]
[1740024934853,0.758,2751.5,2751.2,0.0518189]
[1740024935643,0.758,2751.5,2751.2,3.6865889]
[1740024935839,0.758,2751.5,2751.2,4.49588579]
[1740024937181,5.39,2751.7,2751.5,3.63429]
[1740024937358,5.39,2751.7,2751.2,0.86111579]
[1740024937359,5.5408427,2752.4,2752.3,3.63332]
[1740024937675,0.1508427,2752.4,2752.3,4.40880625]
[1740024937880,0.1508427,2752.4,2752.3,3.68212825]
[1740024939379,0.1508427,2752.4,2752.3,0.04880825]
[1740024939702,0.1508427,2752.4,2752.3,4.45872]
[1740024939874,0.1508427,2752.4,2752.3,4.50749644]
[1740024940082,0.1508427,2752.4,2752.3,5.32159208]
[1740024941399,0.1508427,2752.4,2752.3,1.68827208]
[1740024943904,0.1508427,2752.4,2752.3,5.32159208]
[1740024944704,0.1508427,2752.4,2752.3,5.87159208]
[1740024946788,0.1508427,2752.4,2752.3,0.86287208]
[1740024947107,0.1508427,2752.4,2752.3,3.68209644]
[1740024948108,9.76e-06,2752.4,2752.3,22.30459644]
[1740024948988,9.76e-06,2752.4,2752.3,22.47714602]
[1740024949291,9.76e-06,2752.4,2752.3,22.73714602]
[1740024949499,9.76e-06,2752.4,2752.3,24.88203048]
[1740024950009,9.76e-06,2752.4,2752.3,25.10579794]
[1740024952610,9.76e-06,2752.4,2752.3,16.19579794]
[1740024953338,9.76e-06,2752.4,2752.3,16.29579794]
[1740024956520,9.76e-06,2752.4,2752.3,18.9233811]
[1740024959226,9.76e-06,2752.4,2752.3,18.6623811]
[1740024959526,9.76e-06,2752.4,2752.3,18.9233811]
[1740024960213,9.76e-06,2752.4,2752.3,18.6623811]
[1740024960404,9.76e-06,2752.4,2752.3,18.9233811]
[1740024960803,9.76e-06,2752.4,2752.3,18.69961364]
[1740024961121,9.76e-06,2752.4,2752.3,18.43861364]
[1740024961327,9.76e-06,2752.4,2752.3,18.69961364]
[1740024961827,9.76e-06,2752.4,2752.3,18.42706406]
[1740024962399,9.76e-06,2752.4,2752.3,15.7004809]
[1740024962599,9.76e-06,2752.4,2752.3,14.8894809]
[1740024962799,9.76e-06,2752.4,2752.3,11.8894809]
[1740024963006,9.76e-06,2752.4,2752.3,9.74459644]
[1740024963229,9.76e-06,2752.4,2752.3,12.51209644]
[1740024963430,9.76e-06,2752.4,2752.3,5.32877644]
[1740024963596,0.81290976,2752.4,2752.3,0.04877644]
[1740024963796,1.25750374,2752.4,2752.0,8.166]
[1740024964106,0.81290976,2752.4,2752.3,0.04426965]
[1740024964301,0.81290976,2752.4,2751.6,5.28]
[1740024964503,0.8037,2752.3,2751.6,0.261]
[1740024964701,3.6338,2752.0,2751.1,4.45898]
[1740024964908,0.8037,2751.9,2751.2,0.445898]
[1740024965305,0.8037,2751.9,2751.2,7.080648]
[1740024965904,3.63386,2751.9,2751.2,0.445898]
[1740024966132,0.7938,2751.7,2750.9,3.89613]
[1740024966435,0.7938,2751.6,2750.9,0.261]
[1740024966727,0.7938,2751.4,2751.0,0.04435965]
[1740024968628,0.7938,2751.4,2751.0,3.67938965]
[1740024969021,0.7938,2751.4,2751.1,0.55]
[1740024969220,5.39,2751.7,2751.4,3.63449]
[1740024969535,5.39,2751.7,2751.6,3.63424]
[1740024969733,0.7938,2751.8,2751.5,3.67894393]
[1740024969937,0.7938,2751.8,2751.4,3.63449]
[1740024970155,0.7938,2751.8,2751.6,0.04457393]
[1740024970321,0.7938,2751.8,2751.3,0.55]
[1740024970839,0.7938,2751.8,2751.4,0.04457393]
[1740024971141,0.7938,2751.8,2751.5,3.63437]
[1740024971707,0.7938,2751.8,2751.6,0.04457393]
[1740024973037,0.821,2752.1,2751.6,3.67880393]
[1740024973236,0.821,2752.1,2751.8,3.63394]
[1740024973740,0.82100976,2752.4,2752.0,3.63372]
[1740024974110,0.82100976,2752.4,2752.1,3.63349]
[1740024974331,0.82100976,2752.4,2752.2,3.63345]
[1740024974332,9.76e-06,2752.4,2752.2,3.63345]
[1740024974552,9.76e-06,2752.4,2752.3,4.18332]
[1740024974908,9.76e-06,2752.4,2752.3,7.22736227]
[1740024975103,9.76e-06,2752.4,2752.3,8.66390181]
[1740024975341,9.76e-06,2752.4,2752.3,14.72190181]
[1740024977142,9.76e-06,2752.4,2752.3,14.94563866]
[1740024979261,9.76e-06,2752.4,2752.3,15.22131135]
[1740024983846,9.76e-06,2752.4,2752.3,14.94563866]
[1740024990565,9.76e-06,2752.4,2752.3,15.20663866]
[1740024997174,9.76e-06,2752.4,2752.3,13.87863866]
[1740024997971,9.76e-06,2752.4,2752.3,14.42863866]
[1740025001644,9.76e-06,2752.4,2752.3,14.16763866]
[1740025001850,0.77840976,2752.4,2752.3,14.16763866]
[1740025002717,0.77840976,2752.4,2752.3,13.61763866]
[1740025002975,0.77840976,2752.4,2752.3,5.54777912]
[1740025003179,0.77840976,2752.4,2752.3,3.90109912]
[1740025010693,9.76e-06,2752.4,2752.3,4.45109912]
[1740025011190,9.76e-06,2752.4,2752.3,7.45109912]
[1740025011594,9.76e-06,2752.4,2752.3,6.90109912]
[1740025013288,9.76e-06,2752.4,2752.3,7.95455403]
[1740025030192,9.76e-06,2752.4,2752.3,8.50455403]
[1740025030389,9.76e-06,2752.4,2752.3,9.33345403]
[1740025032246,9.76e-06,2752.4,2752.3,8.50455403]
[1740025032589,9.76e-06,2752.4,2752.3,8.76455403]
[1740025032924,9.76e-06,2752.4,2752.3,8.21455403]
[1740025043928,9.76e-06,2752.4,2752.3,8.76455403]
[1740025048917,9.76e-06,2752.4,2752.3,11.49113719]
[1740025050253,9.76e-06,2752.4,2752.3,10.94113719]
[1740025050442,9.76e-06,2752.4,2752.3,8.21455403]
[1740025050639,9.76e-06,2752.4,2752.3,8.76455403]
[1740025052734,9.76e-06,2752.4,2752.3,10.08453716]
[1740025062560,9.76e-06,2752.4,2752.3,16.14383716]
[1740025064939,9.76e-06,2752.4,2752.3,15.36453716]
[1740025068568,9.76e-06,2752.4,2752.3,10.08453716]
[1740025076791,9.76e-06,2752.4,2752.3,7.95455403]
[1740025076955,9.76e-06,2752.4,2752.3,6.90109912]
[1740025077351,9.76e-06,2752.4,2752.3,6.67736227]
[1740025078164,9.76e-06,2752.4,2752.3,6.90173888]
[1740025081425,9.76e-06,2752.4,2752.3,8.22172201]
[1740025081696,9.76e-06,2752.4,2752.3,9.48586921]
[1740025082582,9.76e-06,2752.4,2752.3,9.2614926]
[1740025083183,9.76e-06,2752.4,2752.3,9.4857412]
[1740025085156,9.76e-06,2752.4,2752.3,6.90161087]
[1740025085770,0.80730976,2752.4,2752.3,0.26829087]
[1740025086188,0.80730976,2752.4,2752.3,0.2242486]
[1740025086865,0.80730976,2752.4,2752.3,0.26406106]
[1740025087196,1.02003905,2752.4,2752.3,0.03981246]
[1740025087398,1.02003905,2752.4,2751.9,0.2242486]
[1740025087399,0.7548,2752.3,2751.9,0.2242486]
[1740025087595,0.7548,2752.3,2752.0,0.03981246]
[1740025087762,0.7548,2752.2,2752.0,0.03981246]
[1740025088799,0.7548,2752.2,2751.8,3.63387]
[1740025089106,0.7548,2752.2,2751.9,0.03981246]
[1740025090284,0.7548,2752.2,2751.7,3.63403]
[1740025090490,0.7548,2752.2,2752.0,0.03981246]
[1740025090690,0.7548,2752.2,2751.7,3.63403]
[1740025090691,0.8326,2752.0,2751.7,3.63403]
[1740025091284,0.8326,2752.0,2751.8,3.63397]
[1740025091484,0.8326,2752.0,2751.9,3.63385]
[1740025092182,6.2226,2752.3,2752.0,3.63362]
[1740025092837,6.2226,2752.3,2752.0,3.63372]
[1740025094219,6.84486098,2752.3,2751.9,3.63385]
[1740025094710,0.7794,2752.2,2751.8,3.63389]
[1740025095015,0.7794,2752.2,2751.6,3.89424]
[1740025095217,0.7794,2752.0,2751.5,0.26]
[1740025096195,0.7794,2752.0,2751.5,3.89436]
[1740025096482,0.7899,2751.9,2751.5,3.89436]
[1740025097218,0.7899,2751.9,2751.6,3.63421]
[1740025097607,0.7899,2751.9,2751.4,3.63442]
[1740025101395,4.42375,2751.9,2751.5,0.0412235]
[1740025101596,0.8157,2751.7,2751.2,3.63474]
[1740025101902,5.258195,2751.7,2751.3,0.0412235]
[1740025102107,0.8174,2751.5,2751.3,0.0412235]
[1740025102306,0.8174,2751.5,2751.1,3.26]
[1740025102617,0.8174,2751.5,2751.4,0.0412235]
[1740025102812,0.8174,2751.5,2751.2,3.63477]
[1740025103016,0.8174,2751.5,2751.3,0.0412235]
[1740025103220,0.8174,2751.5,2751.3,3.63461]
[1740025103419,0.8174,2751.5,2751.4,0.04176277]
[1740025107127,0.8174,2751.5,2751.1,6.8948]
[1740025107431,0.8174,2751.5,2751.1,3.0]
[1740025107734,0.7967,2751.4,2751.2,0.04176277]
[1740025108496,0.7967,2751.4,2750.9,3.0]
[1740025108797,0.7967,2751.4,2751.0,0.04184209]
[1740025110504,3.63466,2751.3,2751.0,0.04184209]
[1740025110699,1.169466,2751.2,2750.7,3.0]
[1740025110902,1.169466,2751.2,2751.1,0.04184209]
[1740025111102,1.169466,2751.2,2750.7,3.0]
[1740025111300,1.169466,2751.2,2751.1,0.04227838]
[1740025111522,1.169466,2751.2,2750.7,3.0]
[1740025111739,1.169466,2751.2,2751.1,0.04227838]
[1740025112241,1.169466,2751.2,2750.7,6.63541]
[1740025112447,0.806,2751.2,2750.8,0.04227838]
[1740025112946,0.806,2751.2,2750.7,6.63541]
[1740025113154,0.806,2751.2,2750.9,0.04227838]
[1740025113330,0.806,2751.2,2750.8,3.6352]
[1740025113533,0.806,2751.2,2751.0,3.67730838]
[1740025113734,0.7948,2751.7,2751.1,4.00256084]
[1740025113929,0.7948,2751.7,2751.1,3.67729085]
[1740025114836,0.7948,2751.7,2751.3,3.63463]
[1740025115559,0.7948,2751.7,2751.4,0.04246085]
[1740025115854,6.01226098,2752.3,2751.6,3.63424]
[1740025116054,3.63366,2752.1,2751.4,3.67687085]
[1740025116257,0.7686,2752.0,2751.7,0.04231805]
[1740025116424,0.7686,2752.0,2751.7,3.63403]
[1740025116625,0.7686,2752.0,2751.8,0.04231805]
[1740025116927,0.7686,2752.2,2751.9,3.63385]
[1740025117124,0.7686,2752.2,2751.9,3.67607285]
[1740025117357,0.7686,2752.2,2751.9,0.04222285]
[1740025117654,0.7686,2752.2,2751.7,3.63403]
[1740025117855,0.7686,2752.2,2752.0,0.04222285]
[1740025118060,0.7686,2752.2,2751.7,3.63403]
[1740025118263,0.7686,2752.2,2752.1,0.04222285]
[1740025118556,0.7686,2752.2,2751.7,3.63403]
[1740025118755,0.7686,2752.2,2752.1,0.04222285]
[1740025118961,1.74778198,2752.2,2751.7,3.63403]
[1740025119123,5.38123198,2752.2,2752.1,0.04222285]
[1740025119323,0.7657,2752.0,2751.4,0.26]
[1740025119557,0.7657,2751.8,2751.4,0.26]
[1740025120629,0.7657,2751.8,2751.4,3.89449]
[1740025120830,3.70330616,2752.2,2751.4,3.89449]
[1740025120831,0.7657,2752.1,2751.4,4.70799]
[1740025121134,0.7657,2752.1,2751.6,3.63414]
[1740025121635,4.39934,2752.1,2751.4,3.89445]
[1740025121839,0.8303,2751.9,2751.4,3.89445]
[1740025122042,0.8303,2751.9,2751.5,3.63437]
[1740025123362,0.8303,2751.5,2750.7,3.6354]
[1740025123563,6.2203,2751.5,2750.7,3.6354]
[1740025123862,6.2203,2751.5,2750.9,3.63507]
[1740025124665,6.2203,2751.5,2750.8,0.22437999]
[1740025124865,9.02447,2751.5,2750.8,0.22437999]
[1740025125167,0.8091,2751.2,2750.8,0.22437999]
[1740025125847,0.8091,2751.2,2750.7,3.85971999]
[1740025126067,0.8091,2751.2,2750.7,4.54569199]
[1740025126886,0.8091,2751.2,2750.8,3.63526]
[1740025127264,0.8091,2751.2,2750.8,0.22437999]
[1740025128577,0.8091,2751.2,2750.8,3.85964999]
[1740025128770,0.8091,2751.2,2750.7,3.63542]
[1740025129648,0.8091,2751.2,2750.8,3.63527]
[1740025131155,0.8091,2751.2,2750.7,3.63531]
[1740025131875,0.8091,2751.2,2750.8,0.03707862]
[1740025132380,0.8091,2751.2,2750.7,3.63531]
[1740025132582,0.8091,2751.2,2750.9,0.03707862]
[1740025132765,0.8091,2751.2,2750.8,3.63523]
[1740025132959,0.8091,2751.2,2751.0,0.03707862]
[1740025133365,0.8091,2751.2,2750.9,3.63514]
[1740025133568,0.8091,2751.2,2751.1,0.03707862]
[1740025133778,0.8091,2751.2,2751.0,0.03761769]
[1740025134089,0.8091,2751.2,2751.1,0.03813297]
[1740025134288,0.8091,2751.2,2750.9,3.63514]
[1740025134493,0.8091,2751.2,2750.9,3.63509]
[1740025134667,0.8091,2751.2,2751.0,0.03813297]
[1740025134863,0.8091,2751.2,2751.0,3.67316297]
[1740025135066,0.7843,2751.4,2751.0,3.67316297]
[1740025135593,0.7843,2751.4,2751.1,3.63488]
[1740025136162,0.7843,2751.4,2751.2,0.0381409]
[1740025136758,0.7843,2751.4,2751.0,3.63503]
[1740025136982,0.7843,2751.4,2751.3,0.0381409]
[1740025137189,0.7843,2751.4,2751.0,3.63495]
[1740025137387,0.7843,2751.4,2751.3,0.0381409]
[1740025137584,0.7843,2751.4,2751.0,3.63495]
[1740025137915,0.7843,2751.4,2750.8,7.27041]
[1740025138101,0.7843,2751.4,2751.1,0.0381409]
[1740025138395,0.7843,2751.4,2750.8,7.27041]
[1740025138396,5.13311542,2751.4,2750.8,3.63519]
[1740025138594,4.41883,2751.4,2751.2,0.0381409]
[1740025138773,0.7843,2751.4,2750.9,3.63516]
[1740025138956,0.7843,2751.4,2751.3,0.03805368]
[1740025139160,0.7843,2751.4,2750.9,3.63516]
[1740025139795,0.7843,2751.4,2751.3,0.03805368]
[1740025140100,1.49858342,2751.4,2751.3,0.03805368]
[1740025140279,1.49858342,2751.4,2750.9,3.63516]
[1740025140476,0.7843,2751.4,2751.3,0.03805368]
[1740025140676,0.7843,2751.4,2750.9,3.63516]
[1740025140899,0.7843,2751.4,2751.3,0.03805368]
[1740025141099,0.7843,2751.4,2750.9,3.63516]
[1740025141303,0.7843,2751.4,2751.3,0.03805368]
[1740025141599,1.49858342,2751.4,2750.9,3.63516]
[1740025141800,0.7843,2751.4,2751.3,0.03805368]
[1740025141979,0.7843,2751.4,2751.0,3.63503]
[1740025142179,0.7843,2751.4,2751.3,0.03805368]
[1740025142382,0.7843,2751.4,2751.0,3.63503]
[1740025142565,0.7843,2751.4,2751.3,0.03805368]
[1740025142769,1.49858342,2751.4,2751.0,3.635]
[1740025142994,0.7843,2751.4,2751.3,0.03805368]
[1740025143169,0.7843,2751.4,2750.9,3.63516]
[1740025143374,0.7843,2751.4,2751.3,0.03805368]
[1740025143891,0.7843,2751.4,2750.9,7.27023]
[1740025144092,0.7843,2751.4,2751.3,0.03802193]
[1740025144425,2.03758342,2751.4,2750.9,3.63507]
[1740025144622,0.7843,2751.4,2751.3,0.03802193]
[1740025144788,0.7843,2751.4,2750.9,3.63507]
[1740025144990,4.41881,2751.4,2751.3,0.03802193]
[1740025145187,4.41881,2751.4,2750.9,3.63517]
[1740025145385,4.41881,2751.4,2751.3,0.03809329]
[1740025145589,5.67210342,2751.4,2750.9,3.63517]
[1740025145790,4.41881,2751.4,2751.3,0.03809329]
[1740025146010,0.7843,2751.4,2750.9,3.63517]
[1740025146210,0.7843,2751.4,2751.3,0.03809329]
[1740025146682,0.7843,2751.4,2751.0,3.63495]
[1740025146882,0.7843,2751.4,2751.3,0.03809329]
[1740025147082,0.7843,2751.4,2751.1,3.6349]
[1740025147283,0.7843,2751.4,2751.3,0.03809329]
[1740025147576,0.7843,2751.4,2751.1,3.6349]
[1740025148130,0.7843,2751.4,2751.2,0.03809329]
[1740025151685,0.7843,2751.4,2750.9,3.63505]
[1740025151885,0.7843,2751.4,2751.3,0.03809329]
[1740025152098,1.56339939,2751.4,2750.9,3.63505]
[1740025152302,0.7843,2751.4,2751.3,0.03809329]
[1740025152615,0.7843,2751.4,2751.0,0.22487988]
[1740025153114,0.7843,2751.4,2751.1,0.03800607]
[1740025153317,7.15969418,2751.2,2751.1,0.03800607]
[1740025153492,7.8756636,2751.2,2751.1,0.03800607]
[1740025153896,7.8756636,2751.2,2750.4,7.39288]
[1740025153897,3.63491,2751.1,2750.5,3.6357]
[1740025154089,3.52492418,2751.2,2750.6,6.63556]
[1740025154685,7.15972418,2751.2,2750.6,6.63556]
[1740025155087,3.52492418,2751.2,2750.6,6.63556]
[1740025155621,3.52492418,2751.2,2750.7,0.22512509]
[1740025156421,7.15970418,2751.2,2750.7,0.22512509]
[1740025157228,7.15970418,2751.2,2750.6,3.0]
[1740025157424,3.63491,2751.1,2750.6,3.0]
[1740025157611,3.52492418,2751.2,2750.6,3.63548]
[1740025158227,7.15977418,2751.2,2750.7,3.0]
[1740025158416,8.2392156,2751.2,2750.7,3.0]
[1740025160329,11.8740756,2751.2,2750.7,3.0]
[1740025160636,8.2392156,2751.2,2750.7,3.0]
[1740025161225,8.2392156,2751.2,2750.8,0.03818847]
[1740025161428,8.2392156,2751.2,2750.7,3.0]
[1740025161636,3.52492418,2751.2,2750.8,0.03818847]
[1740025161935,3.52492418,2751.2,2750.7,6.63536]
[1740025162107,3.52492418,2751.2,2750.9,0.03818847]
[1740025162309,3.52492418,2751.2,2750.7,6.63536]
[1740025162618,3.52492418,2751.2,2750.7,3.0]
[1740025162822,7.15971418,2751.2,2750.8,0.03818847]
[1740025163022,8.2391436,2751.2,2750.7,3.0]
[1740025163397,8.2391436,2751.2,2750.8,0.03818847]
[1740025163629,8.2391436,2751.2,2750.7,3.0]
[1740025163805,0.8268,2751.1,2750.8,0.03818847]
[1740025164005,0.8268,2751.1,2750.2,4.68761226]
[1740025164006,3.63505,2751.0,2750.2,4.68761226]
[1740025164226,7.18611418,2750.9,2750.3,3.67405847]
[1740025164546,3.55092418,2750.9,2750.3,3.67405847]
[1740025165137,0.8268,2750.9,2750.3,0.03818847]
[1740025165319,0.8268,2750.9,2750.4,3.63572]
[1740025165514,2.21268345,2750.9,2750.4,3.63572]
[1740025165715,0.8264,2750.8,2750.5,0.03862462]
[1740025166119,0.8264,2750.8,2750.4,0.22485776]
[1740025166319,0.8264,2750.8,2750.6,0.03862462]
[1740025166519,6.2164,2750.8,2750.4,0.22485776]
[1740025166732,1.12374535,2750.7,2750.4,0.22485776]
[1740025167245,6.2164,2750.8,2750.4,3.86066776]
[1740025167546,6.2164,2750.8,2750.4,3.63581]
[1740025169622,6.2164,2750.8,2750.3,3.63587]
[1740025169845,6.2164,2750.8,2750.4,3.6358]
[1740025170635,5.39,2750.8,2750.5,0.7859]
[1740025170815,5.39,2750.8,2750.7,3.63543]
[1740025171249,0.8041,2751.2,2750.7,4.441119]
[1740025171427,0.8041,2751.2,2750.8,3.63521]
[1740025172158,2.72412418,2751.3,2750.9,3.63516]
[1740025172361,5.39,2751.5,2751.1,3.63487]
[1740025172660,6.1513,2751.6,2751.3,3.63453]
[1740025172873,5.39,2751.9,2751.3,3.63453]
[1740025173029,6.1513,2751.9,2751.4,3.63438]
[1740025173228,6.1513,2751.9,2751.5,3.63435]
[1740025174055,5.39,2751.9,2751.6,0.03856122]
[1740025176152,5.39,2751.9,2751.6,3.67280122]
[1740025177027,5.39,2751.9,2751.6,0.03856122]
[1740025178162,5.39,2751.9,2751.6,3.67277122]
[1740025178359,5.39,2752.2,2751.7,0.7647]
[1740025178654,3.63349,2752.2,2751.8,0.03814105]
[1740025179026,3.63349,2752.2,2751.7,0.7647]
[1740025179225,3.63349,2752.2,2751.8,0.03814105]
[1740025179425,1.17476142,2752.1,2751.7,0.7647]
[1740025179630,8.11412418,2752.3,2751.8,0.03814105]
[1740025179859,8.11412418,2752.3,2751.7,4.3988]
[1740025180162,8.11412418,2752.3,2751.8,0.03814105]
[1740025180354,3.63345,2752.2,2751.8,0.03814105]
[1740025180668,3.63345,2752.2,2751.9,0.03814105]
[1740025180834,1.17475742,2752.1,2751.7,0.7647]
[1740025181037,1.17475742,2752.1,2751.8,0.03814105]
[1740025181269,1.17475742,2752.1,2751.7,0.7647]
[1740025181560,1.17475742,2752.1,2751.8,0.03814105]
[1740025181933,1.17475742,2752.1,2751.5,4.41768]
[1740025182260,3.63345,2752.2,2751.6,0.03814105]
[1740025182467,3.63345,2752.2,2751.6,3.67235105]
[1740025182844,8.11412418,2752.3,2751.7,3.6341]
[1740025183242,11.74750418,2752.3,2751.8,0.03814105]
[1740025183468,11.74750418,2752.3,2751.7,3.6341]
[1740025183631,11.74750418,2752.3,2751.8,0.03718956]
[1740025183830,11.74750418,2752.3,2751.7,3.6341]
[1740025184031,11.74750418,2752.3,2751.8,0.03718956]
[1740025184276,12.80401154,2752.3,2751.7,3.6341]
[1740025184571,12.80401154,2752.3,2751.8,0.03718956]
[1740025184873,12.80401154,2752.3,2751.7,3.6341]
[1740025185061,12.80401154,2752.3,2751.8,0.03718956]
[1740025185366,12.80401154,2752.3,2751.7,3.6341]
[1740025185874,12.80401154,2752.3,2751.8,0.03718956]
[1740025186170,12.80401154,2752.3,2751.7,3.6341]
[1740025186370,12.80401154,2752.3,2751.9,0.03718956]
[1740025186666,1.36110213,2752.2,2752.0,0.03718956]
[1740025186833,1.36110213,2752.2,2751.7,3.6341]
[1740025187034,12.80401154,2752.3,2751.7,3.6341]
[1740025187373,12.80401154,2752.3,2751.8,0.03718956]
[1740025187749,12.80401154,2752.3,2751.7,3.6341]
[1740025187951,12.80401154,2752.3,2751.9,0.03718956]
[1740025188151,12.80401154,2752.3,2751.7,7.26814]
[1740025188353,12.80401154,2752.3,2752.0,0.03718956]
[1740025188551,1.36110213,2752.2,2751.7,7.26814]
[1740025188746,12.80401154,2752.3,2752.1,0.03718956]